bitfinex-derivatives/quotes_ETHF0:USTF0_20250918
["timestamp","ask_amount","ask_price","bid_price","bid_amount"]
[1758226052274,0.78207,4598.1,4598.0,0.8274]
[1758226052473,1.03017,4598.1,4598.0,0.8274]
[1758226052673,1.03017,4598.1,4598.0,1.0474]
[1758226054371,0.78207,4598.1,4598.0,1.0474]
[1758226054874,0.58317,4598.1,4598.0,1.0474]
[1758226055079,0.39127,4598.1,4598.0,1.0474]
[1758226059284,0.39127,4598.1,4598.0,0.8274]
[1758226059484,0.39127,4598.1,4598.0,1.0474]
[1758226063289,0.58317,4598.1,4598.0,1.0474]
[1758226064993,0.39125,4598.4,4598.0,1.0474]
[1758226065189,3.2078,4598.5,4598.0,0.7332]
[1758226065389,1.03011,4598.9,4598.8,0.497]
[1758226065590,0.58311,4598.9,4598.8,0.9116]
[1758226067198,3.2078,4599.0,4598.9,0.2987]
[1758226067199,3.599,4599.0,4598.9,0.2987]
[1758226067400,3.599,4599.0,4598.9,0.6916]
[1758226067898,3.7909,4599.0,4598.9,0.6916]
[1758226068697,3.7909,4599.0,4598.9,1.08281]
[1758226069001,3.7909,4599.0,4598.9,0.6916]
[1758226070002,3.9898,4599.0,4598.9,0.6916]
[1758226070202,4.2379,4599.0,4598.9,0.6916]
[1758226073305,3.9898,4599.0,4598.9,0.6916]
[1758226074204,4.2379,4599.0,4598.9,0.6916]
[1758226076810,3.9898,4599.0,4598.9,0.6916]
[1758226077712,4.2379,4599.0,4598.9,0.6916]
[1758226079111,4.2379,4599.0,4598.9,1.08281]
[1758226079414,4.2383,4599.0,4598.9,0.6916]
[1758226084012,1.0305,4599.0,4598.9,0.6916]
[1758226084618,1.0305,4599.0,4598.9,0.2987]
[1758226085508,1.0305,4599.0,4598.9,0.508]
[1758226086105,1.0305,4599.0,4598.9,0.2987]
[1758226086308,1.04503,4598.6,4598.5,2.5013]
[1758226086507,1.04503,4598.6,4598.5,2.7213]
[1758226086904,0.79653,4598.6,4598.5,3.2329]
[1758226087111,3.2078,4599.0,4598.5,3.2329]
[1758226087304,0.39123,4598.6,4598.5,2.9341]
[1758226087711,0.39123,4598.6,4598.5,3.2329]
[1758226088510,0.58373,4598.6,4598.5,3.2329]
[1758226088818,0.79653,4598.6,4598.5,3.2329]
[1758226089518,0.79653,4598.6,4598.5,3.0129]
[1758226089820,1.04503,4598.6,4598.5,3.2329]
[1758226090110,0.79653,4598.6,4598.5,3.2329]
[1758226091114,0.58373,4598.6,4598.5,3.2329]
[1758226094025,0.79653,4598.6,4598.5,3.2329]
[1758226096113,0.58373,4598.6,4598.5,3.2329]
[1758226096625,0.39123,4598.6,4598.5,3.2329]
[1758226097929,0.58373,4598.6,4598.5,3.2329]
[1758226098428,0.79653,4598.6,4598.5,3.2329]
[1758226099726,1.04503,4598.6,4598.5,3.2329]
[1758226100728,1.04503,4598.6,4598.5,3.0129]
[1758226101128,1.04503,4598.6,4598.5,3.2329]
[1758226103131,0.79653,4598.6,4598.5,3.2329]
[1758226105242,0.58373,4598.6,4598.5,3.2329]
[1758226108641,1.26209,4598.6,4598.5,3.0129]
[1758226108844,1.04463,4598.6,4598.5,3.0201]
[1758226109039,5.26209,4598.6,4598.5,2.3959]
[1758226109755,5.01399,4598.6,4598.5,3.2345]
[1758226110042,0.58373,4598.6,4598.5,3.2345]
[1758226110242,0.58373,4598.6,4598.5,1.0586]
[1758226111048,0.78463,4598.6,4598.5,1.0586]
[1758226111950,0.78463,4598.6,4598.5,0.8528]
[1758226111951,1.03273,4598.6,4598.5,0.8528]
[1758226114145,0.78463,4598.6,4598.5,1.0586]
[1758226114350,0.39123,4598.6,4598.5,1.0586]
[1758226114554,0.58563,4598.6,4598.5,1.0586]
[1758226114746,0.39123,4598.6,4598.5,1.0586]
[1758226117158,0.39123,4598.7,4598.6,1.10733]
[1758226117557,0.84116,4599.4,4599.3,0.7161]
[1758226117751,0.84116,4599.4,4599.3,0.9361]
[1758226118058,1.03556,4599.4,4599.3,0.9361]
[1758226125562,1.23646,4599.4,4599.3,0.9361]
[1758226125858,1.48456,4599.4,4599.3,0.9361]
[1758226126058,1.48456,4599.4,4599.3,0.7303]
[1758226126253,1.48456,4599.4,4599.3,0.5363]
[1758226126561,1.48456,4599.4,4599.3,0.7303]
[1758226127159,1.48456,4599.4,4599.3,0.5103]
[1758226127351,1.23646,4599.4,4599.3,0.9361]
[1758226133564,1.48456,4599.4,4599.3,0.9361]
[1758226134861,1.48456,4599.4,4599.3,0.7303]
[1758226135360,1.48456,4599.4,4599.0,0.1225]
[1758226135361,0.39119,4599.1,4599.0,0.1225]
[1758226135664,0.39119,4599.1,4598.7,2.38]
[1758226135665,1.04292,4598.8,4598.7,2.38]
[1758226135864,0.79502,4598.8,4598.7,2.7981]
[1758226136066,0.79502,4598.8,4598.7,3.1118]
[1758226143361,0.79502,4598.8,4598.7,2.8918]
[1758226143666,1.04292,4598.8,4598.7,2.7096]
[1758226143965,1.04292,4598.8,4598.7,2.6977]
[1758226144158,1.04292,4598.8,4598.7,2.9177]
[1758226144964,1.04292,4598.8,4598.7,0.7418]
[1758226146467,1.04292,4598.8,4598.7,0.5218]
[1758226146771,1.04292,4598.8,4598.7,0.5337]
[1758226147967,1.04292,4598.8,4598.7,0.7418]
[1758226148472,1.04292,4598.8,4598.7,0.5218]
[1758226148661,1.04292,4598.8,4598.7,0.7418]
[1758226149568,1.04292,4598.8,4598.7,0.5218]
[1758226152170,1.04292,4598.8,4598.7,0.3137]
[1758226152471,1.03342,4598.7,4598.6,0.304]
[1758226153873,1.03342,4598.7,4598.0,0.2081]
[1758226153874,0.3943,4598.1,4598.0,0.2081]
[1758226154175,4.30728,4598.1,4598.0,0.4281]
[1758226154974,4.30728,4598.1,4598.0,0.2081]
[1758226155472,0.1196,4598.0,4597.8,0.4281]
[1758226155773,1.09949,4597.9,4597.8,0.2081]
[1758226156565,1.09949,4597.9,4597.8,0.5121]
[1758226158377,1.09949,4597.9,4597.8,0.7183]
[1758226162478,3.59908,4598.1,4597.8,0.7183]
[1758226162683,4.10638,4598.1,4598.0,0.8349]
[1758226162982,4.30728,4598.1,4598.0,0.7183]
[1758226163677,4.30728,4598.1,4598.0,0.8349]
[1758226164475,3.59908,4598.1,4598.0,0.8349]
[1758226164982,3.59908,4598.1,4598.0,1.22618]
[1758226165578,3.2078,4598.1,4598.0,5.22618]
[1758226167281,0.39125,4598.4,4598.3,1.10956]
[1758226167479,0.39124,4598.6,4598.5,0.5309]
[1758226167674,0.39124,4598.6,4598.5,0.8349]
[1758226170481,0.39118,4599.2,4599.1,0.3025]
[1758226170683,0.39118,4599.2,4599.1,0.9223]
[1758226171383,0.89408,4599.2,4599.1,0.9223]
[1758226172387,1.09628,4599.2,4599.1,0.9223]
[1758226172985,0.89408,4599.2,4599.1,0.9223]
[1758226174088,1.09628,4599.2,4599.1,0.9223]
[1758226179483,1.09628,4599.2,4599.1,1.31349]
[1758226180390,1.09628,4599.2,4599.1,0.9223]
[1758226180687,1.09628,4599.2,4599.1,1.31349]
[1758226181384,1.09628,4599.2,4599.1,0.9223]
[1758226181786,0.89408,4599.2,4599.1,0.9223]
[1758226181986,0.39118,4599.2,4599.1,0.9223]
[1758226182187,0.68518,4599.2,4599.1,0.9223]
[1758226182386,0.89408,4599.2,4599.1,0.9223]
[1758226184081,1.09628,4599.2,4599.1,0.9223]
[1758226189290,1.09628,4599.2,4599.1,0.4169]
[1758226189691,1.09628,4599.2,4599.1,0.7194]
[1758226192095,1.09628,4599.2,4599.1,0.9223]
[1758226200099,1.09628,4599.2,4599.1,0.9213]
[1758226200698,0.89408,4599.2,4599.1,0.9213]
[1758226201303,1.08938,4599.2,4599.1,0.9213]
[1758226202197,0.39121,4598.9,4598.8,2.1754]
[1758226202404,0.39121,4598.9,4598.8,2.9058]
[1758226202405,1.09141,4598.9,4598.8,2.9058]
[1758226202801,1.09141,4598.9,4598.8,2.6868]
[1758226202991,1.09141,4598.9,4598.8,2.5873]
[1758226203502,1.09141,4598.9,4598.8,2.9058]
[1758226204006,1.09141,4598.9,4598.8,2.8984]
[1758226204204,1.09141,4598.9,4598.8,3.1174]
[1758226204600,1.09141,4598.9,4598.8,2.3683]
[1758226204899,1.09141,4598.9,4598.8,2.3944]
[1758226206204,1.09141,4598.9,4598.8,2.5873]
[1758226206404,1.09141,4598.9,4598.8,2.9058]
[1758226206608,1.09141,4598.9,4598.8,3.1174]
[1758226207002,0.39121,4598.9,4598.8,3.1174]
[1758226207304,0.39121,4598.9,4598.8,2.8984]
[1758226207500,0.39121,4598.9,4598.8,3.1174]
[1758226209303,0.89611,4598.9,4598.8,3.1174]
[1758226211205,0.89611,4598.9,4598.8,2.8984]
[1758226211504,1.09141,4598.9,4598.8,3.1174]
[1758226212008,1.09141,4598.9,4598.8,2.3944]
[1758226212208,1.09141,4598.9,4598.8,2.9058]
[1758226215306,1.09141,4598.9,4598.8,3.1174]
[1758226215511,0.59971,4598.9,4598.8,3.1174]
[1758226215711,0.89611,4598.9,4598.8,3.1174]
[1758226216009,0.89611,4598.9,4598.8,2.8984]
[1758226216209,1.09141,4598.9,4598.8,3.1174]
[1758226220213,1.09141,4598.9,4598.8,2.3944]
[1758226220407,1.09141,4598.9,4598.8,2.9058]
[1758226222213,1.09141,4598.9,4598.8,3.1174]
[1758226226916,1.34421869,4598.9,4598.8,3.1174]
[1758226227115,1.34421869,4598.9,4598.8,2.1754]
[1758226227315,1.34421869,4598.9,4598.8,2.3944]
[1758226227508,1.34421869,4598.9,4598.8,2.9058]
[1758226229021,1.34421869,4598.9,4598.8,3.1174]
[1758226229717,1.3500368,4598.9,4598.8,3.1174]
[1758226230516,0.8583368,4598.9,4598.8,3.1174]
[1758226230816,0.6498368,4598.9,4598.8,3.1174]
[1758226232007,0.9620368,4598.9,4598.8,3.1174]
[1758226232315,0.6498368,4598.9,4598.8,3.1174]
[1758226232916,0.39121,4598.9,4598.8,3.1174]
[1758226233711,0.39121,4598.9,4598.8,3.50862]
[1758226234414,0.39121,4598.9,4598.8,3.1174]
[1758226237617,0.39121,4598.9,4598.8,3.50862]
[1758226239023,0.3912,4599.0,4598.9,1.0959]
[1758226240825,0.3912,4599.0,4598.9,0.7047]
[1758226241116,0.7034,4599.0,4598.9,0.7047]
[1758226241317,1.114,4599.0,4598.9,0.7047]
[1758226241517,1.114,4599.0,4598.9,0.9237]
[1758226242518,1.11401,4598.9,4598.8,2.1754]
[1758226242821,1.11401,4598.9,4598.8,2.587]
[1758226243020,1.11401,4598.9,4598.8,2.8923]
[1758226243327,1.11401,4598.9,4598.8,0.7169]
[1758226246126,1.11401,4598.9,4598.8,0.4979]
[1758226246321,1.11401,4598.9,4598.8,0.7169]
[1758226246516,1.11401,4598.9,4598.8,0.4979]
[1758226246718,0.39122,4598.8,4598.7,0.0217]
[1758226246925,1.3627548,4598.8,4598.7,0.2407]
[1758226247126,1.3627548,4598.8,4598.7,0.219]
[1758226252126,1.3627548,4598.8,4598.7,0.7169]
[1758226252524,1.3627548,4598.8,4598.7,0.4116]
[1758226252724,1.3627548,4598.8,4598.7,0.219]
[1758226258133,0.78693,4598.6,4598.5,0.2259]
[1758226258335,1.10143,4598.6,4598.5,0.733]
[1758226258536,1.10143,4598.6,4598.5,0.7113]
[1758226260633,1.10143,4598.6,4598.5,0.219]
[1758226261235,1.10143,4598.6,4598.5,0.4922]
[1758226261441,1.10143,4598.6,4598.5,0.7112]
[1758226262240,1.10143,4598.6,4598.5,0.4231]
[1758226262438,1.10145,4598.4,4598.3,2.1971]
[1758226262638,1.10145,4598.4,4597.6,0.2881]
[1758226262639,0.39131,4597.7,4597.6,0.2881]
[1758226262835,1.10151,4597.7,4597.6,0.4231]
[1758226263444,1.10151,4597.7,4597.6,0.7112]
[1758226264145,1.10151,4597.7,4597.2,0.67646]
[1758226264146,0.78705,4597.3,4597.2,1.16866]
[1758226264351,1.10155,4597.3,4597.2,1.38766]
[1758226265038,1.10155,4597.3,4597.2,1.09956]
[1758226265238,1.10155,4597.3,4597.2,0.88056]
[1758226265447,1.10155,4597.3,4597.2,1.09956]
[1758226265954,1.10155,4597.3,4597.2,1.38766]
[1758226266445,1.10155,4597.3,4597.2,1.58806]
[1758226269649,1.10155,4597.3,4597.2,1.09956]
[1758226269954,1.10155,4597.3,4597.2,0.67646]
[1758226273155,4.30935,4597.3,4597.2,0.67646]
[1758226273551,4.30935,4597.3,4597.2,0.88056]
[1758226273755,4.30935,4597.3,4597.2,1.16866]
[1758226274958,4.30935,4597.3,4597.2,1.36906]
[1758226277550,4.30935,4597.3,4597.2,0.88056]
[1758226278961,4.30935,4597.3,4597.2,1.16866]
[1758226279463,4.30935,4597.3,4597.2,0.67646]
[1758226286165,4.30935,4597.3,4597.2,1.16866]
[1758226286766,4.30935,4597.3,4597.2,1.36906]
[1758226291371,4.55873433,4597.3,4597.2,1.36906]
[1758226295575,4.55873433,4597.3,4597.2,0.67646]
[1758226299570,5.08485093,4597.3,4597.2,0.67646]
[1758226304479,4.55873433,4597.3,4597.2,0.67646]
[1758226304680,5.08499468,4597.3,4597.2,0.67646]
[1758226306777,5.08499468,4597.3,4596.6,0.5081]
[1758226306778,0.3914,4596.7,4596.6,0.5081]
[1758226307077,1.1097,4596.7,4596.6,0.1971]
[1758226307374,1.10972,4596.4,4596.3,2.6618]
[1758226307681,1.10972,4596.4,4596.3,3.0807]
[1758226308572,1.10972,4596.4,4596.3,2.5917]
[1758226308974,1.10972,4596.4,4596.3,2.6618]
[1758226309181,1.10972,4596.4,4596.3,2.8808]
[1758226310476,1.10972,4596.4,4596.3,3.0807]
[1758226311380,1.10972,4596.4,4596.3,2.6618]
[1758226311589,1.10972,4596.4,4596.3,3.0807]
[1758226312485,1.10972,4596.4,4596.3,2.8617]
[1758226312686,1.10972,4596.4,4596.3,3.0807]
[1758226313682,1.10972,4596.4,4596.3,0.9051]
[1758226317288,1.10972,4596.4,4596.3,0.6861]
[1758226321291,1.11936,4595.9,4595.8,0.7163]
[1758226321590,1.11936,4595.9,4595.8,0.9136]
[1758226321790,1.11936,4595.9,4595.8,0.6946]
[1758226322090,1.11936,4595.9,4595.8,0.9136]
[1758226323085,1.11936,4595.9,4595.8,0.2892]
[1758226323286,1.11936,4595.9,4595.8,0.9136]
[1758226325300,1.11936,4595.9,4595.8,0.6946]
[1758226325593,1.11942,4595.2,4595.1,2.45684056]
[1758226325790,1.11942,4595.2,4595.1,0.2083]
[1758226325996,1.11942,4595.2,4595.1,0.4273]
[1758226326993,1.11942,4595.2,4595.1,0.2083]
[1758226327198,0.2002,4594.3,4594.2,3.6132]
[1758226327400,0.5152,4594.3,4594.2,3.9024]
[1758226327600,1.1195,4594.3,4594.2,4.1214]
[1758226327898,0.3916,4594.3,4594.2,6.2983]
[1758226328500,0.7279,4594.8,4594.7,0.2083]
[1758226328693,1.11946,4594.8,4594.7,0.7165]
[1758226329294,1.11946,4594.8,4594.7,0.4273]
[1758226329993,1.11946,4594.8,4594.7,0.219]
[1758226330201,0.3916,4594.3,4594.2,2.1769]
[1758226330396,0.8045,4594.3,4594.2,2.3959]
[1758226330590,1.1195,4594.3,4594.2,2.8934]
[1758226331300,1.1195,4594.3,4594.2,0.7165]
[1758226331504,1.1195,4594.3,4594.2,0.9136]
[1758226336901,0.3916,4594.3,4594.2,0.9136]
[1758226338002,0.39156,4594.8,4594.7,0.6946]
[1758226338194,3.2078,4594.9,4594.8,0.2892]
[1758226338399,3.2078,4594.9,4594.8,0.6946]
[1758226339203,0.97868,4595.9,4595.1,1.08613]
[1758226339204,0.39153,4595.2,4595.1,1.08613]
[1758226339508,3.59931,4595.4,4595.3,0.6946]
[1758226341311,0.5152,4595.9,4595.8,0.6946]
[1758226341613,0.90666,4595.9,4595.8,0.9136]
[1758226343304,3.59926,4596.1,4596.0,0.5305]
[1758226343610,3.59926,4596.1,4596.0,0.8197]
[1758226343805,3.2078,4596.1,4596.0,0.8197]
[1758226344310,0.1185,4597.0,4596.4,0.6946]
[1758226344311,0.90662,4596.5,4596.4,0.6946]
[1758226344609,0.90662,4596.5,4596.4,0.9136]
[1758226345109,0.5152,4596.5,4596.4,0.9136]
[1758226347505,3.2078,4596.6,4596.5,0.72481]
[1758226347708,3.2078,4597.2,4597.1,0.2892]
[1758226347905,3.408,4597.2,4597.1,0.9129]
[1758226348107,3.79935,4597.2,4597.1,0.9129]
[1758226348904,4.10575,4597.2,4597.1,0.9129]
[1758226349116,4.30955,4597.2,4597.1,0.9129]
[1758226349509,4.30955,4597.2,4597.1,0.6939]
[1758226349710,4.30955,4597.2,4597.1,0.9129]
[1758226351209,4.30955,4597.2,4596.3,3.2078]
[1758226351210,0.39142,4596.4,4596.3,3.2078]
[1758226351414,0.90165,4596.2,4596.1,0.4047]
[1758226351713,1.09495,4596.2,4596.1,0.9152]
[1758226352010,1.09495,4596.2,4596.1,0.485]
[1758226352205,1.09495,4596.2,4596.1,0.219]
[1758226353615,1.09495,4596.2,4596.1,0.4125]
[1758226354012,0.3064,4596.1,4596.0,2.1769]
[1758226354217,0.7035,4596.1,4596.0,2.3959]
[1758226354918,0.7035,4596.1,4596.0,0.219]
[1758226355817,0.7035,4596.1,4596.0,0.9152]
[1758226356314,0.7035,4596.1,4596.0,0.4125]
[1758226356514,0.7035,4596.1,4596.0,0.219]
[1758226357213,0.50926,4596.0,4595.8,3.2078]
[1758226357415,1.21276,4596.0,4595.9,0.219]
[1758226357616,1.09496,4596.0,4595.9,0.9152]
[1758226358420,0.3064,4596.6,4596.4,0.2112]
[1758226358715,1.0949,4596.6,4596.5,0.704]
[1758226359723,1.0949,4596.6,4596.5,0.9152]
[1758226359919,0.5847,4596.6,4596.5,1.0369]
[1758226360518,0.8911,4596.6,4596.5,1.0369]
[1758226360823,0.3914,4596.6,4596.5,1.0369]
[1758226361423,0.8911,4596.6,4596.5,1.0369]
[1758226362319,1.0949,4596.6,4596.5,0.6244]
[1758226362515,1.09492,4596.4,4596.3,0.7179]
[1758226362718,1.09492,4596.4,4596.3,0.9369]
[1758226364533,1.09492,4596.4,4596.3,0.9152]
[1758226366426,1.09492,4596.4,4596.3,0.4125]
[1758226366932,0.1178,4596.0,4595.9,2.1769]
[1758226367127,0.8213,4596.0,4595.9,2.5894]
[1758226367328,0.8213,4596.0,4595.9,2.8809]
[1758226368536,0.8213,4596.0,4595.9,2.5894]
[1758226368738,0.8213,4596.0,4595.9,2.8809]
[1758226369035,0.8213,4596.0,4595.9,3.0921]
[1758226369434,1.21276,4596.0,4595.9,3.0921]
[1758226371330,1.09496,4596.0,4595.9,3.0921]
[1758226371531,0.39146,4596.0,4595.9,3.0921]
[1758226372240,0.39146,4596.0,4595.9,3.48356]
[1758226374933,0.511,4596.9,4596.8,0.714]
[1758226375132,0.7066,4596.9,4596.8,0.933]
[1758226375334,1.09798,4596.9,4596.8,0.933]
[1758226377430,0.78183,4596.3,4596.2,0.5131]
[1758226377634,1.09803,4596.3,4596.2,0.933]
[1758226380337,1.95681,4597.2,4596.2,0.933]
[1758226380338,0.2923,4596.9,4596.3,0.3918]
[1758226380643,0.39141,4596.5,4596.4,0.7046]
[1758226381346,0.87561,4596.5,4596.4,0.7046]
[1758226381846,0.87561,4596.5,4596.4,2.8815]
[1758226382143,1.19941,4596.5,4596.4,2.9047]
[1758226382346,1.19941,4596.5,4596.4,3.1005]
[1758226382944,1.08321,4596.5,4596.4,3.1005]
[1758226383849,1.19941,4596.5,4596.4,2.3959]
[1758226384243,1.19941,4596.5,4596.4,2.5919]
[1758226384443,1.19941,4596.5,4596.4,2.9047]
[1758226384842,1.08321,4596.5,4596.4,3.1005]
[1758226386449,1.08321,4596.5,4596.4,2.8815]
[1758226386643,1.08321,4596.5,4596.4,3.1005]
[1758226387449,1.08321,4596.5,4596.4,3.49192]
[1758226387644,0.39141,4596.5,4596.4,3.49192]
[1758226389151,0.87561,4596.5,4596.4,3.49192]
[1758226389448,0.87561,4596.5,4596.4,3.1005]
[1758226389855,0.87561,4596.5,4596.4,3.49192]
[1758226390053,0.58331,4596.5,4596.4,3.49192]
[1758226390249,0.39141,4596.5,4596.4,3.49192]
[1758226390950,0.87561,4596.5,4596.4,3.49192]
[1758226393256,0.39141,4596.5,4596.4,3.49192]
[1758226393555,0.68369,4596.9,4596.8,1.09599]
[1758226393753,0.68369,4596.9,4596.8,0.9236]
[1758226393955,0.87559,4596.9,4596.8,0.9236]
[1758226398963,1.08319,4596.9,4596.8,0.9236]
[1758226399259,1.08321,4596.5,4596.4,2.8815]
[1758226399460,1.08321,4596.5,4596.4,3.1005]
[1758226399662,1.08321,4596.5,4596.4,3.49192]
[1758226400057,0.39141,4596.5,4596.4,3.49192]
[1758226401265,1.08321,4596.5,4596.4,3.1005]
[1758226402765,0.39141,4596.5,4596.4,3.49192]
[1758226404762,0.87561,4596.5,4596.4,3.1005]
[1758226405162,0.39141,4596.5,4596.4,3.1005]
[1758226406570,0.39141,4596.5,4596.4,2.8815]
[1758226406774,0.39141,4596.5,4596.4,3.1005]
[1758226407166,0.87561,4596.5,4596.4,3.1005]
[1758226407366,1.08321,4596.5,4596.4,3.1005]
[1758226409574,1.08321,4596.5,4596.4,2.8815]
[1758226409775,1.08321,4596.5,4596.4,3.1005]
[1758226410278,1.08321,4596.5,4596.4,2.8815]
[1758226410479,1.20991,4596.5,4596.4,2.3959]
[1758226412981,1.08321,4596.5,4596.4,3.1025]
[1758226413481,0.39141,4596.5,4596.4,3.1025]
[1758226414082,0.59521,4596.5,4596.4,3.1025]
[1758226414287,0.88841,4596.5,4596.4,3.1025]
[1758226416189,0.59521,4596.5,4596.4,3.1025]
[1758226416384,0.88841,4596.5,4596.4,3.1025]
[1758226416591,1.08921,4596.5,4596.4,3.1025]
[1758226417491,0.39141,4596.5,4596.4,3.1025]
[1758226420093,0.39141,4596.5,4596.4,3.49392]
[1758226422295,0.39141,4596.5,4596.4,3.1025]
[1758226422795,0.39141,4596.5,4596.4,3.1025]
[1758226423190,1.08921,4596.5,4596.4,2.8835]
[1758226423390,1.08921,4596.5,4596.4,3.1025]
[1758226423694,0.59521,4596.5,4596.4,3.1025]
[1758226423896,0.88841,4596.5,4596.4,3.1025]
[1758226425596,0.88841,4596.5,4596.4,2.8835]
[1758226425796,0.88841,4596.5,4596.4,3.1025]
[1758226433505,0.88841,4596.5,4596.4,3.49392]
[1758226434405,0.39141,4596.5,4596.4,3.49392]
[1758226435005,0.70501,4596.5,4596.4,3.49392]
[1758226435204,0.90821,4596.5,4596.4,3.49392]
[1758226439206,0.90821,4596.5,4596.4,3.1025]
[1758226440304,1.44587001,4596.5,4596.4,2.1769]
[1758226440503,1.44587001,4596.5,4596.4,2.3959]
[1758226440701,1.22831,4596.5,4596.4,2.6038]
[1758226440901,1.22831,4596.5,4596.4,2.9055]
[1758226441102,1.10931,4596.5,4596.4,3.1172]
[1758226442007,0.90821,4596.5,4596.4,3.1172]
[1758226443096,0.39141,4596.5,4596.4,3.1172]
[1758226445404,0.69371,4596.5,4596.4,3.1172]
[1758226445605,0.39141,4596.5,4596.4,3.1172]
[1758226447310,0.69371,4596.5,4596.4,3.1172]
[1758226447813,0.39141,4596.5,4596.4,3.1172]
[1758226450810,0.69371,4596.5,4596.4,3.1172]
[1758226451710,0.89821,4596.5,4596.4,3.1172]
[1758226452314,1.22371,4596.5,4596.4,2.1769]
[1758226452609,1.22371,4596.5,4596.4,2.9055]
[1758226453111,1.22371,4596.5,4596.4,2.6038]
[1758226453810,1.22371,4596.5,4596.4,2.9055]
[1758226454211,1.22371,4596.5,4596.4,3.1172]
[1758226454411,1.10471,4596.5,4596.4,3.1172]
[1758226456113,1.22371,4596.5,4596.4,3.1172]
[1758226456813,1.10471,4596.5,4596.4,3.1172]
[1758226457013,0.39141,4596.5,4596.4,3.1172]
[1758226457211,0.89821,4596.5,4596.4,3.1172]
[1758226457817,1.10471,4596.5,4596.4,3.1172]
[1758226461017,1.10471,4596.5,4596.4,0.9403]
[1758226461916,1.22371,4596.5,4596.4,0.7286]
[1758226462716,1.10471,4596.5,4596.4,0.9403]
[1758226465411,1.22371,4596.5,4596.4,0.4269]
[1758226465711,1.22371,4596.5,4596.4,0.7286]
[1758226466421,1.22371,4596.5,4596.4,0.9403]
[1758226468019,1.22371,4596.5,4596.2,0.5129]
[1758226468020,1.08983,4596.3,4596.2,0.5129]
[1758226468323,1.08983,4596.3,4596.2,0.918]
[1758226479341,1.08983,4596.3,4596.2,0.4197]
[1758226479639,1.08983,4596.3,4596.2,0.7102]
[1758226481138,1.08983,4596.3,4596.2,0.918]
[1758226481841,1.08983,4596.3,4596.2,1.30944]
[1758226482239,1.08983,4596.3,4596.2,0.918]
[1758226483240,1.08983,4596.3,4596.2,1.30944]
[1758226483834,1.08983,4596.3,4596.2,0.918]
[1758226484342,1.08983,4596.3,4596.2,1.30944]
[1758226484744,1.08983,4596.3,4596.2,0.918]
[1758226485136,1.08983,4596.3,4596.2,1.30944]
[1758226485745,0.2084,4596.8,4596.7,0.4085]
[1758226485942,0.2982,4597.0,4596.9,0.79988]
[1758226486147,0.2982,4597.1,4597.0,0.816]
[1758226486339,0.2982,4597.1,4597.0,1.035]
[1758226486539,0.68956,4597.1,4597.0,1.035]
[1758226486748,0.2982,4597.1,4597.0,1.42637]
[1758226487044,0.8979,4597.8,4597.7,0.699]
[1758226487243,0.8979,4597.8,4597.7,0.918]
[1758226488041,1.0897,4597.8,4597.7,0.918]
[1758226489042,1.21633,4597.5,4597.3,0.219]
[1758226490047,1.21633,4597.5,4597.4,0.2007]
[1758226491142,1.21633,4597.5,4597.4,0.4912]
[1758226491749,1.21633,4597.5,4597.4,0.2007]
[1758226492642,1.21633,4597.5,4597.4,0.4912]
[1758226493448,1.21633,4597.5,4597.4,0.2007]
[1758226493839,1.21633,4597.5,4597.4,0.4912]
[1758226495742,1.08973,4597.5,4597.4,0.699]
[1758226495943,0.5126,4597.9,4597.8,0.4123]
[1758226496146,0.90389,4597.9,4597.8,0.4123]
[1758226496649,0.90389,4597.9,4597.8,0.7276]
[1758226497345,1.11539,4597.9,4597.8,0.7276]
[1758226497937,1.11539,4597.9,4597.8,1.1189]
[1758226498345,1.11539,4597.9,4597.8,0.7276]
[1758226498544,1.11539,4597.9,4597.8,1.1189]
[1758226499539,1.11316,4598.3,4598.2,0.3997]
[1758226499745,1.1132,4597.8,4597.7,0.219]
[1758226500150,1.1132,4597.8,4597.7,0.4269]
[1758226500452,1.1132,4597.8,4597.7,0.219]
[1758226501248,0.7219,4597.8,4597.7,1.13501]
[1758226501447,1.1132,4597.8,4597.7,0.7165]
[1758226502848,0.39128,4598.1,4598.0,0.8343]
[1758226503247,0.39128,4598.1,4598.0,1.22558]
[1758226503649,1.11315,4598.4,4598.3,0.7165]
[1758226504049,1.11315,4598.4,4598.3,1.10776]
[1758226504253,1.11315,4598.4,4598.3,0.7165]
[1758226508862,1.11315,4598.4,4598.3,1.10776]
[1758226509757,1.11315,4598.4,4598.3,0.7165]
[1758226510864,1.11315,4598.4,4598.3,1.10776]
[1758226511960,1.11315,4598.4,4598.1,0.219]
[1758226511961,0.90392,4598.7,4598.6,0.89983]
[1758226512162,0.5127,4599.1,4599.0,0.583]
[1758226512362,0.5127,4599.3,4599.2,0.3997]
[1758226512559,0.7219,4599.3,4599.2,0.7165]
[1758226512966,1.11307,4599.3,4599.2,0.7165]
[1758226526773,1.11307,4599.3,4599.2,0.5247]
[1758226526973,1.11307,4599.3,4599.2,0.3168]
[1758226527279,0.45,4599.4,4599.0,0.0217]
[1758226527280,1.11309,4599.1,4599.0,0.0217]
[1758226527778,0.80282,4598.8,4598.7,0.6187]
[1758226528078,1.11802,4598.8,4598.7,0.6187]
[1758226528478,1.11802,4598.8,4598.7,0.9229]
[1758226528678,1.11802,4598.8,4598.7,0.219]